[Event "2. AUT Bundesliga 2020-21"]
[Site "Graz"]
[Date "2021.03.12"]
[Round "1.4"]
[White "Guetz, Wolfgang"]
[Black "Wiesinger, Robert"]
[Result "1/2-1/2"]
[ECO "C44"]
[WhiteElo "2061"]
[BlackElo "2239"]
[Annotator "broadcasts"]
[PlyCount "43"]
[EventDate "2021.01.17"]
[EventType "team-tourn"]
[EventCountry "AUT"]
[TimeControl "40/5400+30:1800+30"]

1. e4 {[%emt 0:00:00]} e5 {[%emt 0:00:00]} 2. Nf3 {[%emt 0:00:00]} Nc6 {[%emt 0:00:00]} 3. d4 {[%emt 0:00:00]} exd4 {[%emt 0:00:00]} 4. Nxd4 {[%emt 0:00:00]} Nf6 {[%emt 0:00:10]} 5. Nxc6 {[%emt 0:00:20]} bxc6 {[%emt 0:00:13]} 6. Bd3 {[%emt 0:01:07]} d5 {[%emt 0:03:16]} 7. exd5 {[%emt 0:00:19]} cxd5 {[%emt 0:00:29]} 8. O-O {[%emt 0:00:25]} Be7 {[%emt 0:00:41]} 9. h3 {[%emt 0:02:46]} O-O {[%emt 0:00:53]} 10. Nd2 {[%emt 0:02:55]} c5 {[%emt 0:40:56]} 11. c3 {[%emt 0:03:06]} h6 {[%emt 0:04:00]} 12. Nf3 {[%emt 0:02:04]} Bd6 {[%emt 0:00:37]} 13. Be3 {[%emt 0:04:14]} Re8 {[%emt 0:07:01]} 14. Re1 {[%emt 0:09:54]} Be6 {[%emt 0:04:10]} 15. Qa4 {[%emt 0:25:03]} Bd7 {[%emt 0:03:54]} 16. Qh4 {[%emt 0:02:12]} a5 {[%emt 0:11:52]} 17. g4 {[%emt 0:07:03]} Ne4 {[%emt 0:01:57]} 18. Qh5 {[%emt 0:04:00]} Nf6 {[%emt 0:03:03]} 19. Qh4 {[%emt 0:00:47]} Ne4 {[%emt 0:01:06]} 20. Qh5 {[%emt 0:00:07]} Nf6 {[%emt 0:00:05]} 21. Qh4 {[%emt 0:00:04]} Ne4 {[%emt 0:00:08]} 22. Qh5 {[%emt 0:00:08]} 1/2-1/2

[Event "2. AUT Bundesliga 2020-21"]
[Site "Graz"]
[Date "2021.03.12"]
[Round "1.6"]
[White "Egger, Philipp"]
[Black "Ring, Rudolf"]
[Result "1-0"]
[ECO "D45"]
[WhiteElo "1999"]
[BlackElo "1737"]
[Annotator "broadcasts"]
[PlyCount "63"]
[EventDate "2021.01.17"]
[EventType "team-tourn"]
[EventCountry "AUT"]
[TimeControl "40/5400+30:1800+30"]

1. d4 {[%emt 0:00:00]} d5 {[%emt 0:00:00]} 2. c4 {[%emt 0:00:00]} c6 {[%emt 0:00:17]} 3. Nc3 {[%emt 0:00:16]} Nf6 {[%emt 0:00:32]} 4. Nf3 {[%emt 0:02:04]} e6 {[%emt 0:00:28]} 5. e3 {[%emt 0:02:50]} Be7 {[%emt 0:02:45]} 6. Qc2 {[%emt 0:01:25]} Nbd7 {[%emt 0:05:19]} 7. cxd5 {[%emt 0:06:13]} exd5 {[%emt 0:02:37]} 8. Bd3 {[%emt 0:10:29]} h6 {[%emt 0:08:47]} 9. Bd2 {[%emt 0:02:42]} Nb6 {[%emt 0:03:55]} 10. Ne5 {[%emt 0:14:27]} Ng4 {[%emt 0:08:09]} 11. Nxg4 {[%emt 0:19:26]} Bxg4 {[%emt 0:00:24]} 12. O-O {[%emt 0:00:34]} Qd7 {[%emt 0:04:19]} 13. a4 {[%emt 0:01:22]} a6 {[%emt 0:03:34]} 14. Qb3 {[%emt 0:02:40]} Nc8 {[%emt 0:02:12]} 15. f3 {[%emt 0:05:36]} Be6 {[%emt 0:00:36]} 16. Qc2 {[%emt 0:03:25]} O-O {[%emt 0:00:55]} 17. f4 {[%emt 0:00:51]} f5 {[%emt 0:01:08]} 18. a5 {[%emt 0:03:01]} Na7 {[%emt 0:08:50]} 19. Na4 {[%emt 0:01:58]} Rae8 {[%emt 0:01:17]} 20. Rfc1 {[%emt 0:02:18]} Nc8 {[%emt 0:01:10]} 21. Qb3 {[%emt 0:00:46]} Rf7 {[%emt 0:10:02]} 22. Be2 {[%emt 0:02:08]} Kh7 {[%emt 0:00:16]} 23. Qc2 {[%emt 0:00:18]} Nd6 {[%emt 0:16:32]} 24. Nc5 {[%emt 0:02:20]} Qc8 {[%emt 0:01:29]} 25. Nd3 {[%emt 0:02:09]} Bf6 {[%emt 0:06:55]} 26. Ra4 {[%emt 0:02:46]} Nc4 {[%emt 0:01:23]} 27. Nc5 {[%emt 0:00:22]} Nd6 {[%emt 0:00:52]} 28. Bd3 {[%emt 0:00:21]} Ne4 {[%emt 0:01:09]} 29. Bxe4 {[%emt 0:03:25]} fxe4 {[%emt 0:00:01]} 30. Rb4 {[%emt 0:00:23]} Bd8 {[%emt 0:01:09]} 31. Qa4 {[%emt 0:00:44]} Qc7 {[%emt 0:01:24]} 32. Rxb7 1-0

[Event "2. AUT Bundesliga 2020-21"]
[Site "Graz"]
[Date "2021.03.12"]
[Round "1.7"]
[White "Nagy, Gabor"]
[Black "Bachlechner, Julian"]
[Result "1-0"]
[ECO "E11"]
[WhiteElo "2516"]
[BlackElo "2214"]
[Annotator "broadcasts"]
[PlyCount "43"]
[EventDate "2021.01.17"]
[EventType "team-tourn"]
[EventCountry "AUT"]
[TimeControl "40/5400+30:1800+30"]

1. d4 {[%emt 0:00:00]} e6 {[%emt 0:00:00]} 2. Nf3 {[%emt 0:00:00]} Nf6 {[%emt 0:00:02]} 3. c4 {[%emt 0:00:15]} Bb4+ {[%emt 0:00:39]} 4. Nbd2 {[%emt 0:00:44]} O-O {[%emt 0:01:09]} 5. g3 {[%emt 0:01:15]} d5 {[%emt 0:00:54]} 6. Bg2 {[%emt 0:00:58]} c5 {[%emt 0:01:58]} 7. dxc5 {[%emt 0:01:36]} Bxc5 {[%emt 0:02:02]} 8. O-O {[%emt 0:00:33]} Nc6 {[%emt 0:00:51]} 9. a3 {[%emt 0:04:02]} a5 {[%emt 0:01:32]} 10. cxd5 {[%emt 0:01:03]} Nxd5 {[%emt 0:02:42]} 11. Qc2 {[%emt 0:03:10]} Ba7 {[%emt 0:01:57]} 12. e4 {[%emt 0:02:48]} Nf6 {[%emt 0:01:15]} 13. Nc4 {[%emt 0:03:59]} Qe7 {[%emt 0:05:22]} 14. Bf4 {[%emt 0:02:11]} Rd8 {[%emt 0:01:49]} 15. Rac1 {[%emt 0:08:45]} Nh5 {[%emt 0:05:40]} 16. Bd2 {[%emt 0:01:55]} Bb8 {[%emt 0:05:58]} 17. e5 {[%emt 0:03:12]} b5 {[%emt 0:15:46]} 18. Ng5 {[%emt 0:02:21]} Qc7 {[%emt 0:04:08]} 19. Qxh7+ {[%emt 0:00:12]} Kf8 {[%emt 0:00:16]} 20. Qh8+ {[%emt 0:00:13]} Ke7 {[%emt 0:00:06]} 21. Qxh5 {[%emt 0:00:05]} Rf8 {[%emt 0:01:21]} 22. Nxa5 {[%emt 0:00:35]} 1-0

[Event "2. AUT Bundesliga 2020-21"]
[Site "Graz"]
[Date "2021.03.12"]
[Round "1.11"]
[White "Marakovits, Nico"]
[Black "Hafner, Robert"]
[Result "1/2-1/2"]
[ECO "D10"]
[WhiteElo "2214"]
[BlackElo "2006"]
[Annotator "broadcasts"]
[PlyCount "116"]
[EventDate "2021.01.17"]
[EventType "team-tourn"]
[EventCountry "AUT"]
[TimeControl "40/5400+30:1800+30"]

1. d4 {[%emt 0:00:00]} d5 {[%emt 0:00:00]} 2. c4 {[%emt 0:00:00]} c6 {[%emt 0:00:00]} 3. cxd5 {[%emt 0:00:01]} cxd5 {[%emt 0:00:00]} 4. Nc3 {[%emt 0:00:57]} Nf6 {[%emt 0:00:00]} 5. Bf4 {[%emt 0:00:23]} Nc6 {[%emt 0:00:59]} 6. Nf3 {[%emt 0:00:41]} e6 {[%emt 0:00:04]} 7. e3 {[%emt 0:01:01]} Bd6 {[%emt 0:00:05]} 8. Bg3 {[%emt 0:00:15]} O-O {[%emt 0:00:07]} 9. Bd3 {[%emt 0:00:35]} Qe7 {[%emt 0:03:43]} 10. O-O {[%emt 0:04:49]} Bd7 {[%emt 0:00:08]} 11. Qe2 {[%emt 0:06:10]} Rfc8 {[%emt 0:00:16]} 12. Rfc1 {[%emt 0:02:31]} Be8 {[%emt 0:00:14]} 13. Bh4 {[%emt 0:01:55]} Qd8 {[%emt 0:05:03]} 14. a3 {[%emt 0:06:04]} Be7 {[%emt 0:05:30]} 15. Nd2 {[%emt 0:04:23]} a6 {[%emt 0:06:12]} 16. b4 {[%emt 0:08:05]} Nd7 {[%emt 0:15:05]} 17. Bxe7 {[%emt 0:02:15]} Qxe7 {[%emt 0:01:58]} 18. Na4 {[%emt 0:04:36]} b5 {[%emt 0:03:53]} 19. Nc5 {[%emt 0:00:50]} Nb6 {[%emt 0:00:36]} 20. Qh5 {[%emt 0:02:14]} h6 {[%emt 0:04:15]} 21. Qd1 {[%emt 0:00:15]} Nc4 {[%emt 0:04:32]} 22. Nxc4 {[%emt 0:04:40]} bxc4 {[%emt 0:02:29]} 23. Be2 {[%emt 0:02:33]} Nd8 {[%emt 0:08:44]} 24. e4 {[%emt 0:05:34]} Nb7 {[%emt 0:05:30]} 25. exd5 {[%emt 0:02:14]} exd5 {[%emt 0:00:08]} 26. Bf3 {[%emt 0:01:00]} Bc6 {[%emt 0:01:51]} 27. Na4 {[%emt 0:04:44]} Bxa4 {[%emt 0:08:05]} 28. Qxa4 {[%emt 0:00:06]} Qd6 {[%emt 0:02:11]} 29. Re1 {[%emt 0:03:07]} f6 {[%emt 0:18:01]} 30. Bg4 {[%emt 0:04:22]} Rd8 {[%emt 0:00:13]} 31. g3 {[%emt 0:02:15]} Qb6 {[%emt 0:00:27]} 32. Rad1 {[%emt 0:01:24]} Qb5 {[%emt 0:01:46]} 33. Qc2 {[%emt 0:00:37]} Re8 {[%emt 0:02:08]} 34. Be6+ {[%emt 0:01:34]} Kh8 {[%emt 0:00:34]} 35. Qg6 {[%emt 0:02:36]} Nd6 {[%emt 0:00:14]} 36. Qh5 {[%emt 0:00:46]} Rad8 {[%emt 0:02:16]} 37. Qxd5 {[%emt 0:08:26]} Qxd5 {[%emt 0:00:32]} 38. Bxd5 {[%emt 0:00:06]} Rxe1+ {[%emt 0:00:22]} 39. Rxe1 {[%emt 0:00:07]} c3 {[%emt 0:00:12]} 40. Rc1 {[%emt 0:00:00]} Nb5 {[%emt 0:00:00]} 41. Bf3 {[%emt 0:14:29]} Nxa3 {[%emt 0:08:57]} 42. Rxc3 {[%emt 0:01:27]} Nb5 {[%emt 0:00:07]} 43. Rb3 {[%emt 0:08:03]} Nxd4 {[%emt 0:01:08]} 44. Ra3 {[%emt 0:01:57]} Nxf3+ {[%emt 0:00:39]} 45. Rxf3 {[%emt 0:01:05]} Rb8 {[%emt 0:00:09]} 46. Rf4 {[%emt 0:00:05]} Rb5 {[%emt 0:00:04]} 47. Kg2 {[%emt 0:00:56]} a5 {[%emt 0:00:09]} 48. bxa5 {[%emt 0:00:06]} Rxa5 {[%emt 0:00:04]} 49. Rb4 {[%emt 0:00:18]} Kh7 {[%emt 0:00:13]} 50. h4 {[%emt 0:00:25]} h5 {[%emt 0:00:22]} 51. Kf3 {[%emt 0:01:19]} Kg6 {[%emt 0:00:13]} 52. Kf4 {[%emt 0:00:45]} Rf5+ {[%emt 0:00:14]} 53. Ke3 {[%emt 0:00:05]} Ra5 {[%emt 0:00:06]} 54. f3 {[%emt 0:00:41]} Re5+ {[%emt 0:03:32]} 55. Re4 {[%emt 0:00:09]} Ra5 {[%emt 0:00:08]} 56. g4 {[%emt 0:00:49]} hxg4 {[%emt 0:00:38]} 57. Rxg4+ {[%emt 0:00:24]} Kh6 {[%emt 0:00:48]} 58. Rd4 {[%emt 0:01:23]} Rb5 {[%emt 0:00:24]} 1/2-1/2

[Event "2. AUT Bundesliga 2020-21"]
[Site "Graz"]
[Date "2021.03.12"]
[Round "1.12"]
[White "Bresch, Manfred"]
[Black "Stradner, Stefan"]
[Result "1/2-1/2"]
[ECO "C01"]
[WhiteElo "2008"]
[BlackElo "2124"]
[Annotator "broadcasts"]
[PlyCount "62"]
[EventDate "2021.01.17"]
[EventType "team-tourn"]
[EventCountry "AUT"]
[TimeControl "40/5400+30:1800+30"]

1. e4 {[%emt 0:00:00]} e6 {[%emt 0:00:00]} 2. d4 {[%emt 0:00:00]} d5 {[%emt 0:00:00]} 3. exd5 {[%emt 0:00:31]} exd5 {[%emt 0:00:00]} 4. Nf3 {[%emt 0:00:20]} Nf6 {[%emt 0:00:40]} 5. Bd3 {[%emt 0:01:13]} c5 {[%emt 0:00:35]} 6. O-O {[%emt 0:03:16]} c4 {[%emt 0:01:01]} 7. Be2 {[%emt 0:00:05]} Bd6 {[%emt 0:01:53]} 8. Bg5 {[%emt 0:03:30]} O-O {[%emt 0:00:55]} 9. Nc3 {[%emt 0:02:20]} Be6 {[%emt 0:01:45]} 10. Ne5 {[%emt 0:05:04]} Nc6 {[%emt 0:25:57]} 11. Ng4 {[%emt 0:07:59]} Be7 {[%emt 0:03:10]} 12. Bf3 {[%emt 0:11:41]} Nxg4 {[%emt 0:04:30]} 13. Bxe7 {[%emt 0:00:13]} Qxe7 {[%emt 0:01:51]} 14. Bxg4 {[%emt 0:01:33]} Qf6 {[%emt 0:05:37]} 15. Bxe6 {[%emt 0:13:51]} fxe6 {[%emt 0:00:23]} 16. Ne2 {[%emt 0:02:02]} Rae8 {[%emt 0:05:24]} 17. f4 {[%emt 0:04:10]} Ne7 {[%emt 0:04:12]} 18. Qd2 {[%emt 0:03:40]} Nf5 {[%emt 0:03:30]} 19. Rae1 {[%emt 0:02:32]} h5 {[%emt 0:02:26]} 20. Rf3 {[%emt 0:05:05]} g6 {[%emt 0:04:48]} 21. a3 {[%emt 0:02:46]} Re7 {[%emt 0:07:01]} 22. c3 {[%emt 0:02:57]} Nd6 {[%emt 0:05:43]} 23. Ng3 {[%emt 0:02:53]} h4 {[%emt 0:00:15]} 24. Nh1 {[%emt 0:00:04]} Ne4 {[%emt 0:06:03]} 25. Qc2 {[%emt 0:00:56]} Kf7 {[%emt 0:02:10]} 26. Nf2 {[%emt 0:00:29]} Nxf2 {[%emt 0:00:55]} 27. Qxf2 {[%emt 0:00:11]} Rc7 {[%emt 0:00:46]} 28. Re5 {[%emt 0:01:06]} Kg7 {[%emt 0:00:45]} 29. Rg5 {[%emt 0:03:03]} Rh8 {[%emt 0:00:16]} 30. Rh3 {[%emt 0:02:30]} Rf7 {[%emt 0:00:15]} 31. Rf3 {[%emt 0:00:45]} Rc7 {[%emt 0:00:10]} 1/2-1/2

[Event "2. AUT Bundesliga 2020-21"]
[Site "Graz"]
[Date "2021.03.12"]
[Round "1.18"]
[White "Pretterhofer, Kiaras"]
[Black "Steiner, Peter"]
[Result "1/2-1/2"]
[ECO "E92"]
[WhiteElo "1979"]
[BlackElo "1968"]
[Annotator "NA"]
[PlyCount "33"]
[EventDate "2021.01.17"]
[EventType "team-tourn"]
[EventCountry "AUT"]
[TimeControl "40/5400+30:1800+30"]

1. Nf3 {[%emt 0:00:00]} Nf6 {[%emt 0:00:00]} 2. d4 {[%emt 0:00:00]} g6 {[%emt 0:00:00]} 3. c4 {[%emt 0:00:36]} Bg7 {[%emt 0:00:03]} 4. Nc3 {[%emt 0:00:10]} O-O {[%emt 0:00:24]} 5. e4 {[%emt 0:01:40]} d6 {[%emt 0:00:08]} 6. Be2 {[%emt 0:01:12]} e5 {[%emt 0:00:31]} 7. dxe5 {[%emt 0:00:23]} dxe5 {[%emt 0:00:08]} 8. Qxd8 {[%emt 0:00:03]} Rxd8 {[%emt 0:00:11]} 9. Bg5 {[%emt 0:01:56]} Re8 {[%emt 0:01:26]} 10. O-O-O {[%emt 0:03:31]} Na6 {[%emt 0:17:50]} 11. h3 {[%emt 0:08:53]} Be6 {[%emt 0:14:31]} 12. Be3 {[%emt 0:03:37]} c6 {[%emt 0:06:45]} 13. Ng5 {[%emt 0:06:20]} Bc8 {[%emt 0:07:39]} 14. Nf3 {[%emt 0:01:34]} Be6 {[%emt 0:00:12]} 15. Ng5 {[%emt 0:00:54]} Bc8 {[%emt 0:00:13]} 16. Nf3 {[%emt 0:00:06]} Be6 {[%emt 0:00:05]} 17. Ng5 1/2-1/2

[Event "2. AUT Bundesliga 2020-21"]
[Site "Graz"]
[Date "2021.03.13"]
[Round "2.1"]
[White "Rogic, Davor"]
[Black "Huber, Martin Christian"]
[Result "1/2-1/2"]
[ECO "B49"]
[WhiteElo "2492"]
[BlackElo "2344"]
[Annotator "ChessBase"]
[PlyCount "79"]
[EventDate "2021.01.17"]
[EventType "team-tourn"]
[EventCountry "AUT"]
[SourceTitle "playchess.com"]
[Source "ChessBase"]
[SourceQuality "1"]
[TimeControl "40/5400+30:1800+30"]

1. e4 {[%emt 0:00:00]} c5 {[%emt 0:00:06]} 2. Nf3 {[%emt 0:00:00]} e6 {[%emt 0:00:06]} 3. d4 {[%emt 0:00:07]} cxd4 {[%emt 0:00:07]} 4. Nxd4 {[%emt 0:00:03]} Nc6 {[%emt 0:00:04]} 5. Nc3 {[%emt 0:00:47]} Qc7 {[%emt 0:00:04]} 6. Be3 {[%emt 0:00:17]} a6 {[%emt 0:00:05]} 7. Be2 {[%emt 0:00:14]} Nf6 {[%emt 0:00:10]} 8. a3 {[%emt 0:00:24]} Be7 {[%emt 0:00:45]} 9. f4 {[%emt 0:00:24]} d6 {[%emt 0:01:12]} 10. g4 {[%emt 0:00:15]} Na5 {[%emt 0:05:44]} 11. g5 {[%emt 0:08:24]} Nd7 {[%emt 0:00:24]} 12. Rf1 {[%emt 0:06:29]} b5 {[%emt 0:02:53]} 13. Qd2 {[%emt 0:05:33]} Nb6 {[%emt 0:12:22]} 14. b3 {[%emt 0:03:05]} Bd7 {[%emt 0:23:23]} 15. Bd3 {[%emt 0:09:28]} Nb7 {[%emt 0:04:57]} 16. f5 {[%emt 0:03:04]} Rc8 {[%emt 0:03:50]} 17. fxe6 {[%emt 0:08:53]} fxe6 {[%emt 0:03:25]} 18. Nce2 {[%emt 0:01:35]} Nc5 {[%emt 0:04:41]} 19. Ng3 {[%emt 0:00:45]} g6 {[%emt 0:05:22]} 20. Nde2 {[%emt 0:14:26]} Bc6 {[%emt 0:08:11]} 21. h4 {[%emt 0:07:44]} Nbd7 {[%emt 0:08:30]} 22. b4 {[%emt 0:00:46]} Nxd3+ {[%emt 0:01:14]} 23. cxd3 {[%emt 0:00:08]} Ne5 {[%emt 0:02:29]} 24. Rc1 {[%emt 0:00:58]} Qb7 {[%emt 0:01:19]} 25. Nd4 {[%emt 0:12:11]} Bd7 {[%emt 0:01:54]} 26. Rxc8+ {[%emt 0:01:40]} Bxc8 {[%emt 0:01:11]} 27. Nge2 {[%emt 0:04:35]} Nf7 {[%emt 0:03:39]} 28. Qa2 {[%emt 0:03:10]} Qd7 {[%emt 0:01:30]} 29. Nf4 {[%emt 0:01:44]} Nd8 {[%emt 0:00:10]} 30. Nf3 {[%emt 0:00:57]} Rf8 {[%emt 0:04:32]} 31. h5 {[%emt 0:01:57]} gxh5 {[%emt 0:00:04]} 32. Nxh5 {[%emt 0:00:14]} Rf7 {[%emt 0:00:21]} 33. Qg2 {[%emt 0:01:50]} e5 {[%emt 0:00:37]} 34. Nf6+ {[%emt 0:02:02]} Bxf6 {[%emt 0:00:29]} 35. gxf6 {[%emt 0:00:01]} Qh3 {[%emt 0:01:04]} 36. Qg8+ {[%emt 0:02:44]} Rf8 {[%emt 0:00:01]} 37. Qg7 {[%emt 0:00:32]} Rf7 {[%emt 0:00:09]} 38. Qg8+ {[%emt 0:00:23]} Rf8 {[%emt 0:00:01]} 39. Qg7 {[%emt 0:00:58]} Rf7 {[%emt 0:00:00]} 40. Qg8+ {[%emt 0:00:00]} 1/2-1/2

[Event "2. AUT Bundesliga 2020-21"]
[Site "Graz"]
[Date "2021.03.13"]
[Round "2.2"]
[White "Eder, Matthias"]
[Black "Dietmayer-Kraeutler, Marco"]
[Result "1/2-1/2"]
[ECO "D35"]
[WhiteElo "2170"]
[BlackElo "2284"]
[Annotator "ChessBase"]
[PlyCount "65"]
[EventDate "2021.01.17"]
[EventType "team-tourn"]
[EventCountry "AUT"]
[SourceTitle "playchess.com"]
[Source "ChessBase"]
[SourceQuality "1"]
[TimeControl "40/5400+30:1800+30"]

1. d4 {[%emt 0:01:21]} d5 {[%emt 0:00:01]} 2. c4 {[%emt 0:00:30]} e6 {[%emt 0:00:05]} 3. Nc3 {[%emt 0:00:18]} Nf6 {[%emt 0:00:05]} 4. cxd5 {[%emt 0:00:08]} exd5 {[%emt 0:00:05]} 5. Bg5 {[%emt 0:00:05]} Nbd7 {[%emt 0:00:06]} 6. e3 {[%emt 0:00:07]} Be7 {[%emt 0:00:33]} 7. Bd3 {[%emt 0:00:23]} Nf8 {[%emt 0:00:50]} 8. Nge2 {[%emt 0:02:53]} Ne6 {[%emt 0:00:18]} 9. Bh4 {[%emt 0:03:26]} c6 {[%emt 0:02:40]} 10. Qc2 {[%emt 0:02:29]} g6 {[%emt 0:00:22]} 11. O-O {[%emt 0:03:50]} Ng7 {[%emt 0:04:48]} 12. b4 {[%emt 0:09:40]} a6 {[%emt 0:01:11]} 13. Bxf6 {[%emt 0:04:19]} Bxf6 {[%emt 0:00:07]} 14. a4 {[%emt 0:00:06]} O-O {[%emt 0:05:29]} 15. b5 {[%emt 0:00:40]} a5 {[%emt 0:07:56]} 16. bxc6 {[%emt 0:06:28]} bxc6 {[%emt 0:00:59]} 17. Rab1 {[%emt 0:08:30]} Ne6 {[%emt 0:05:59]} 18. Rfd1 {[%emt 0:12:24]} Bd7 {[%emt 0:06:44]} 19. e4 {[%emt 0:17:17]} Nxd4 {[%emt 0:06:20]} 20. Nxd4 {[%emt 0:00:07]} Bxd4 {[%emt 0:00:07]} 21. exd5 {[%emt 0:00:30]} cxd5 {[%emt 0:22:52]} 22. Nxd5 {[%emt 0:00:07]} Bg7 {[%emt 0:15:25]} 23. Nb6 {[%emt 0:09:55]} Ra7 {[%emt 0:02:59]} 24. Nxd7 {[%emt 0:02:24]} Rxd7 {[%emt 0:00:16]} 25. Bb5 {[%emt 0:02:18]} Rxd1+ {[%emt 0:01:01]} 26. Rxd1 {[%emt 0:00:04]} Qc8 {[%emt 0:00:15]} 27. Qd2 {[%emt 0:02:42]} Qc3 {[%emt 0:00:43]} 28. Qxc3 {[%emt 0:00:29]} Bxc3 {[%emt 0:00:02]} 29. Rd7 {[%emt 0:00:37]} Rc8 {[%emt 0:00:13]} 30. g3 {[%emt 0:00:55]} Bb4 {[%emt 0:00:16]} 31. Bd3 Re8 32. Be4 Re7 33. Bd3 1/2-1/2

[Event "2. AUT Bundesliga 2020-21"]
[Site "Graz"]
[Date "2021.03.13"]
[Round "2.3"]
[White "Ragger, Anna-Christina"]
[Black "Kristoferitsch, Daniel"]
[Result "0-1"]
[ECO "C07"]
[WhiteElo "2198"]
[BlackElo "2166"]
[Annotator "NA"]
[PlyCount "121"]
[EventDate "2021.01.17"]
[EventType "team-tourn"]
[EventCountry "AUT"]
[SourceTitle "playchess.com"]
[Source "ChessBase"]
[SourceQuality "1"]
[TimeControl "40/5400+30:1800+30"]

1. e4 {[%emt 0:00:00]} e6 {[%emt 0:00:00]} 2. d4 {[%emt 0:00:00]} d5 {[%emt 0:00:00]} 3. Nd2 {[%emt 0:00:00]} c5 {[%emt 0:00:00]} 4. exd5 {[%emt 0:00:00]} Qxd5 {[%emt 0:00:00]} 5. Ngf3 {[%emt 0:00:00]} cxd4 {[%emt 0:00:10]} 6. Bc4 {[%emt 0:00:00]} Qd8 {[%emt 0:00:09]} 7. O-O {[%emt 0:00:20]} Nc6 {[%emt 0:00:14]} 8. Nb3 {[%emt 0:00:08]} a6 {[%emt 0:00:06]} 9. Nbxd4 {[%emt 0:00:08]} Nxd4 {[%emt 0:00:07]} 10. Nxd4 {[%emt 0:00:05]} Bd6 {[%emt 0:00:08]} 11. Bb3 {[%emt 0:00:42]} Ne7 {[%emt 0:01:07]} 12. Re1 {[%emt 0:04:30]} Qc7 {[%emt 0:04:50]} 13. h3 {[%emt 0:01:43]} O-O {[%emt 0:00:36]} 14. c3 {[%emt 0:03:38]} Bd7 {[%emt 0:14:35]} 15. Bg5 {[%emt 0:03:58]} e5 {[%emt 0:06:41]} 16. Bxe7 {[%emt 0:02:12]} Bxe7 {[%emt 0:00:30] [#]} 17. Qh5 $1 {[%emt 0:13:07]} Bf6 {[%emt 0:04:11]} 18. Nf5 {[%emt 0:03:40]} g6 {[%emt 0:08:37]} 19. Nh6+ {[%emt 0:01:03]} Kg7 {[%emt 0:00:07]} 20. Qf3 {[%emt 0:00:36]} Qb6 {[%emt 0:31:32]} 21. Ng4 {[%emt 0:05:07]} Bxg4 {[%emt 0:03:02]} 22. hxg4 {[%emt 0:06:21]} Rad8 {[%emt 0:00:10]} 23. Rad1 {[%emt 0:00:55]} h6 {[%emt 0:03:16]} 24. Rd5 {[%emt 0:01:29]} Rxd5 {[%emt 0:00:56]} 25. Qxd5 {[%emt 0:00:09]} Qc7 {[%emt 0:05:44]} 26. Rd1 {[%emt 0:01:21]} Rd8 {[%emt 0:00:25]} 27. Qf3 {[%emt 0:00:15]} Rxd1+ {[%emt 0:00:53]} 28. Qxd1 {[%emt 0:00:20]} Qd8 {[%emt 0:00:42]} 29. Qf3 {[%emt 0:00:33]} Qd7 {[%emt 0:00:40]} 30. a4 {[%emt 0:02:18]} b6 {[%emt 0:02:34]} 31. Qa8 $11 {[%emt 0:02:04]} a5 {[%emt 0:04:02]} 32. Qb8 {[%emt 0:03:04]} Qd8 {[%emt 0:00:10]} 33. Qb7 {[%emt 0:01:12]} Be7 {[%emt 0:00:10]} 34. g3 {[%emt 0:03:37]} Qd6 {[%emt 0:00:55]} 35. Kg2 {[%emt 0:00:54]} Qf6 {[%emt 0:01:01]} 36. Qd5 {[%emt 0:00:56]} Bc5 {[%emt 0:01:25]} 37. f3 {[%emt 0:00:33]} Qe7 {[%emt 0:04:48]} 38. Ba2 {[%emt 0:02:37]} Qf6 {[%emt 0:01:32]} 39. Qc4 {[%emt 0:02:35]} Qe7 {[%emt 0:00:26]} 40. Kh3 {[%emt 0:00:00]} Kg8 {[%emt 0:00:00]} 41. Qa6 {[%emt 0:09:48]} Qd7 {[%emt 0:07:00]} 42. Qc4 {[%emt 0:06:27]} h5 {[%emt 0:10:50]} 43. b4 {[%emt 0:06:37]} hxg4+ {[%emt 0:00:12]} 44. fxg4 {[%emt 0:00:04]} Bd6 {[%emt 0:09:20]} 45. bxa5 {[%emt 0:04:20]} bxa5 {[%emt 0:00:10]} 46. Qd5 {[%emt 0:00:21]} Qc7 {[%emt 0:00:58]} 47. Kg2 {[%emt 0:00:40]} Kg7 {[%emt 0:01:14]} 48. c4 {[%emt 0:10:40]} Qc5 {[%emt 0:01:38]} 49. Qd3 {[%emt 0:00:41]} Qa3 {[%emt 0:01:16]} 50. Bb3 {[%emt 0:01:10]} Qb2+ {[%emt 0:01:39]} 51. Kf3 {[%emt 0:03:39]} e4+ {[%emt 0:01:03]} 52. Kxe4 {[%emt 0:00:10]} Qe5+ {[%emt 0:00:22]} 53. Kf3 {[%emt 0:00:04]} Qxg3+ {[%emt 0:00:16]} 54. Ke2 {[%emt 0:00:35]} Qxg4+ {[%emt 0:00:22]} 55. Kd2 {[%emt 0:00:07]} Qg2+ {[%emt 0:01:32]} 56. Kd1 {[%emt 0:00:15]} Qg1+ {[%emt 0:01:22]} 57. Kc2 {[%emt 0:00:13]} Be5 {[%emt 0:00:37]} 58. Qd5 {[%emt 0:00:57]} Qf2+ {[%emt 0:01:51]} 59. Kd3 {[%emt 0:00:20]} Qf1+ {[%emt 0:00:32]} 60. Kc2 {[%emt 0:02:00]} Qe2+ {[%emt 0:00:35]} 61. Kb1 {[%emt 0:00:13]} 0-1

[Event "2. AUT Bundesliga 2020-21"]
[Site "Graz"]
[Date "2021.03.13"]
[Round "2.5"]
[White "Guetz, Wolfgang"]
[Black "Wendl, Philipp"]
[Result "1/2-1/2"]
[ECO "C45"]
[WhiteElo "2061"]
[BlackElo "1942"]
[Annotator "ChessBase"]
[PlyCount "62"]
[EventDate "2021.01.17"]
[EventType "team-tourn"]
[EventCountry "AUT"]
[SourceTitle "playchess.com"]
[Source "ChessBase"]
[SourceQuality "1"]
[TimeControl "40/5400+30:1800+30"]

1. e4 {[%emt 0:00:00]} e5 {[%emt 0:00:00]} 2. Nf3 {[%emt 0:00:00]} Nc6 {[%emt 0:00:00]} 3. d4 {[%emt 0:00:00]} exd4 {[%emt 0:00:00]} 4. Nxd4 {[%emt 0:00:00]} Nf6 {[%emt 0:00:00]} 5. Nxc6 {[%emt 0:00:00]} bxc6 {[%emt 0:00:00]} 6. e5 {[%emt 0:00:13]} Qe7 {[%emt 0:00:00]} 7. Qe2 {[%emt 0:00:12]} Nd5 {[%emt 0:00:06]} 8. c4 {[%emt 0:00:41]} Ba6 {[%emt 0:00:32]} 9. b3 {[%emt 0:00:31]} Qh4 {[%emt 0:01:48]} 10. Bb2 {[%emt 0:20:19]} Bb4+ {[%emt 0:01:24]} 11. Nd2 {[%emt 0:05:33]} Nc3 {[%emt 0:16:18]} 12. Bxc3 {[%emt 0:02:02]} Bxc3 {[%emt 0:00:10]} 13. Rc1 {[%emt 0:09:39]} Qd4 {[%emt 0:02:30]} 14. f4 {[%emt 0:06:34]} Bb4 {[%emt 0:04:34]} 15. g3 {[%emt 0:18:17]} Bxd2+ {[%emt 0:01:15]} 16. Qxd2 {[%emt 0:00:05]} Qe4+ {[%emt 0:00:07]} 17. Kf2 {[%emt 0:00:49]} Qxh1 {[%emt 0:03:09]} 18. Bg2 {[%emt 0:00:19]} Qxh2 {[%emt 0:00:06]} 19. Rh1 {[%emt 0:00:20]} Qxh1 {[%emt 0:00:14]} 20. Bxh1 {[%emt 0:00:02]} Bb7 {[%emt 0:06:47]} 21. Qa5 {[%emt 0:08:08]} Kd8 {[%emt 0:07:23]} 22. Bf3 {[%emt 0:07:31]} h5 {[%emt 0:04:50]} 23. e6 {[%emt 0:04:33]} dxe6 {[%emt 0:04:54]} 24. Qg5+ {[%emt 0:01:19]} Kd7 {[%emt 0:01:13]} 25. Qxg7 {[%emt 0:00:16]} Ke7 {[%emt 0:00:43]} 26. Qg5+ {[%emt 0:00:53]} Kd7 {[%emt 0:03:16]} 27. Qf6 {[%emt 0:02:30]} Raf8 {[%emt 0:01:25]} 28. Qd4+ {[%emt 0:00:52]} Kc8 {[%emt 0:00:47]} 29. Qxa7 {[%emt 0:00:14]} h4 {[%emt 0:00:29]} 30. gxh4 {[%emt 0:00:42]} Rxh4 {[%emt 0:00:19]} 31. Kg3 {[%emt 0:01:12]} Rh6 {[%emt 0:00:55]} 1/2-1/2